bitfinex/quotes_BTCUSD_20250512
["timestamp","ask_amount","ask_price","bid_price","bid_amount"]
[1747069995685,1.42409606,103070.0,103060.0,0.344]
[1747069995916,1.03506367,103070.0,103060.0,0.744]
[1747069996383,1.03506367,103070.0,103060.0,0.742]
[1747069996637,1.03506367,103070.0,103060.0,0.74]
[1747069998987,1.03506367,103070.0,103060.0,0.34]
[1747069999473,1.03506367,103070.0,103060.0,0.74]
[1747070002155,1.13091797,103070.0,103060.0,0.74]
[1747070002354,1.13091797,103070.0,103060.0,0.34]
[1747070002611,0.83091797,103070.0,103060.0,0.34]
[1747070003293,0.24478792,103050.0,103040.0,0.40911713]
[1747070003511,0.71428222,103050.0,103040.0,0.40916295]
[1747070003720,0.71898349,103050.0,103040.0,0.74916295]
[1747070004594,0.71898349,103050.0,103040.0,0.75216295]
[1747070005340,0.71898349,103050.0,103040.0,0.75616295]
[1747070005576,1.01898349,103050.0,103040.0,0.75616295]
[1747070006695,1.01898349,103050.0,103040.0,0.75216295]
[1747070006909,1.01898349,103050.0,103040.0,0.75116295]
[1747070007121,1.01898349,103050.0,103040.0,0.75316295]
[1747070015944,1.01898349,103050.0,103040.0,0.34404582]
[1747070017080,1.01898349,103050.0,103040.0,0.74404582]
[1747070018205,1.01898349,103050.0,103040.0,0.75385621]
[1747070018837,0.64534349,103050.0,103040.0,0.35385621]
[1747070019062,1.01882349,103050.0,103040.0,0.35385621]
[1747070019289,1.11467779,103050.0,103040.0,0.35385621]
[1747070020667,1.11467779,103050.0,103040.0,0.35185621]
[1747070020890,1.11467779,103050.0,103040.0,0.34985621]
[1747070021318,1.12375373,103050.0,103040.0,0.34985621]
[1747070023100,1.12375373,103050.0,103040.0,0.74985621]
[1747070023566,1.12375373,103050.0,103040.0,0.40985621]
[1747070023787,1.13056104,103050.0,103040.0,0.40985621]
[1747070024231,1.13056104,103050.0,103040.0,0.00985621]
[1747070024727,1.13056104,103050.0,103040.0,0.40985621]
[1747070024919,1.13056104,103050.0,103040.0,0.00985621]
[1747070025324,1.13056104,103050.0,103040.0,0.40985621]
[1747070027716,1.13056104,103050.0,103040.0,0.00985621]
[1747070027934,1.13056104,103050.0,103040.0,4.582e-05]
[1747070028637,1.14510189,103050.0,103040.0,4.582e-05]
[1747070029340,1.14610189,103050.0,103040.0,4.582e-05]
[1747070030257,1.14710189,103050.0,103040.0,4.582e-05]
[1747070033435,1.05116759,103050.0,103040.0,4.582e-05]
[1747070044499,1.04209165,103050.0,103040.0,4.582e-05]
[1747070049847,1.46141165,103050.0,103040.0,4.582e-05]
[1747070052263,1.4467508,103050.0,103040.0,4.582e-05]
[1747070069559,1.46129165,103050.0,103040.0,4.582e-05]
[1747070069766,1.85714595,103050.0,103040.0,4.582e-05]
[1747070077154,1.88443323,103050.0,103040.0,4.582e-05]
[1747070078954,1.58443323,103050.0,103040.0,4.582e-05]
[1747070079691,1.55714595,103050.0,103040.0,4.582e-05]
[1747070086957,1.61541595,103050.0,103040.0,4.582e-05]
[1747070087175,1.55714595,103050.0,103040.0,4.582e-05]
[1747070087852,1.65924595,103050.0,103040.0,4.582e-05]
[1747070089351,1.06454595,103050.0,103040.0,4.582e-05]
[1747070089539,1.76065165,103050.0,103040.0,4.582e-05]
[1747070091249,1.75595038,103050.0,103040.0,4.582e-05]
[1747070092487,0.21352936,103030.0,103020.0,0.05055363]
[1747070092696,0.68194366,103030.0,103020.0,0.05069089]
[1747070093105,0.68875097,103030.0,103020.0,0.03409089]
[1747070093350,0.74970532,103030.0,103020.0,0.03409089]
[1747070093750,0.74970532,103030.0,103020.0,0.03609089]
[1747070094174,0.68875097,103030.0,103020.0,0.03609089]
[1747070094498,0.68875097,103030.0,103020.0,0.03809089]
[1747070094662,0.68875097,103030.0,103020.0,0.05429089]
[1747070095277,1.10815097,103030.0,103020.0,0.03809089]
[1747070098569,1.10815097,103030.0,103020.0,0.37809089]
[1747070098773,1.20400527,103030.0,103020.0,0.37809089]
[1747070099113,1.20400527,103030.0,103020.0,0.77809089]
[1747070099387,1.10815097,103030.0,103020.0,0.77809089]
[1747070101444,1.10815097,103030.0,103020.0,0.76159089]
[1747070102152,1.10815097,103030.0,103020.0,0.36159089]
[1747070102563,1.10815097,103030.0,103020.0,0.76159089]
[1747070105533,1.10815097,103030.0,103020.0,0.36159089]
[1747070105992,1.21970527,103030.0,103020.0,0.36159089]
[1747070106201,1.23520527,103030.0,103020.0,0.76159089]
[1747070106753,1.21970527,103030.0,103020.0,0.75959089]
[1747070106973,1.21970527,103030.0,103020.0,0.75759089]
[1747070107180,1.21970527,103030.0,103020.0,0.75859089]
[1747070107381,1.23520527,103030.0,103020.0,0.35859089]
[1747070107654,1.23520527,103030.0,103020.0,0.01859089]
[1747070107813,1.23520527,103030.0,103020.0,0.00113726]
[1747070107814,1.24974612,103030.0,103020.0,0.00113726]
[1747070108017,1.34974612,103030.0,103020.0,0.00113726]
[1747070108813,1.34974612,103030.0,103020.0,0.00013726]
[1747070109063,1.35374612,103030.0,103020.0,0.00013726]
[1747070109755,1.35774612,103030.0,103020.0,0.00013726]
[1747070110864,1.65774612,103030.0,103020.0,0.00013726]
[1747070112464,1.54719097,103030.0,103020.0,0.00013726]
[1747070113607,1.56173182,103030.0,103020.0,0.00013726]
[1747070129005,2.02252106,103030.0,103020.0,0.00013726]
[1747070129166,2.10555081,103030.0,103020.0,0.00013726]
[1747070129369,2.02752106,103030.0,103020.0,0.00013726]
[1747070129571,1.66258612,103030.0,103020.0,0.00013726]
[1747070132253,1.65858612,103030.0,103020.0,0.00013726]
[1747070132465,1.66458612,103030.0,103020.0,0.00013726]
[1747070132675,1.66058612,103030.0,103020.0,0.00013726]
[1747070132888,1.37658612,103030.0,103020.0,0.00013726]
[1747070133754,1.83737536,103030.0,103020.0,0.00013726]
[1747070133973,2.2096214,103030.0,103020.0,0.00013726]
[1747070134418,2.21468783,103030.0,103020.0,0.00013726]
[1747070137897,2.20868783,103030.0,103020.0,0.00013726]
[1747070138101,2.22168783,103030.0,103020.0,0.00213726]
[1747070138307,1.75433859,103030.0,103020.0,0.00213726]
[1747070138711,1.77233859,103030.0,103020.0,0.00413726]
[1747070138915,0.5039031,102990.0,102980.0,0.89126803]
[1747070139124,1.3910774,102990.0,102980.0,0.89126803]
[1747070139330,1.3910774,102990.0,102980.0,0.89175158]
[1747070140164,1.3910774,102990.0,102980.0,0.89375158]
[1747070141022,1.3920774,102990.0,102980.0,0.89775158]
[1747070142076,1.4879317,102990.0,102980.0,0.91365158]
[1747070143554,1.4879317,102990.0,102980.0,1.25365158]
[1747070144401,1.3920774,102990.0,102980.0,1.25365158]
[1747070145998,1.3920774,102990.0,102980.0,0.90845158]
[1747070146534,1.3920774,102990.0,102980.0,0.43696234]
[1747070147761,1.3920774,102990.0,102980.0,0.89775158]
[1747070148739,1.0202374,102990.0,102980.0,0.89775158]
[1747070148940,1.3920774,102990.0,102980.0,0.91365158]
[1747070149167,1.3920774,102990.0,102980.0,0.90845158]
[1747070149971,1.3202374,102990.0,102980.0,0.91365158]
[1747070150171,1.6920774,102990.0,102980.0,0.91365158]
[1747070155612,1.6920774,102990.0,102980.0,0.90845158]
[1747070155853,1.73308616,102990.0,102980.0,0.49775158]
[1747070156060,1.74938616,102990.0,102980.0,0.03696234]
[1747070156511,1.74938616,102990.0,102980.0,0.43696234]
[1747070156929,1.6920774,102990.0,102980.0,0.43696234]
[1747070157593,1.6920774,102990.0,102980.0,0.89775158]
[1747070159146,1.69889851,102990.0,102980.0,0.89775158]
[1747070160201,1.6988979,102990.0,102980.0,0.89775158]
[1747070160743,1.7152979,102990.0,102980.0,0.89775158]
[1747070160976,1.8111522,102990.0,102980.0,0.89775158]
[1747070163182,1.7152979,102990.0,102980.0,0.89775158]
[1747070163400,1.7309979,102990.0,102980.0,0.89775158]
[1747070166456,1.7309979,102990.0,102980.0,0.46078924]
[1747070167405,1.7309979,102990.0,102980.0,0.86078924]
[1747070169035,1.7309979,102990.0,102980.0,0.4]
[1747070170694,1.8022249,102990.0,102980.0,0.4]
[1747070170888,1.8022249,102990.0,102980.0,0.4311765]
[1747070171920,1.7309979,102990.0,102980.0,0.4311765]
[1747070172348,1.7309979,102990.0,102980.0,0.0311765]
[1747070172791,0.20392289,102980.0,102970.0,0.81668924]
[1747070172979,0.48565719,102980.0,102970.0,0.81668924]
[1747070173175,0.48565719,102980.0,102970.0,1.21668924]
[1747070173698,0.48565719,102980.0,102970.0,1.21148924]
[1747070173889,0.48565719,102980.0,102970.0,1.21448924]
[1747070174336,0.48565719,102980.0,102970.0,1.21648924]
[1747070175526,0.48565719,102980.0,102970.0,1.24765642]
[1747070175725,0.29977719,102980.0,102970.0,1.24765642]
[1747070175947,0.48565719,102980.0,102970.0,1.25285642]
[1747070176155,0.30948715,102980.0,102970.0,1.25285642]
[1747070176385,0.70074754,102980.0,102970.0,2.30255342]
[1747070176580,0.69103777,102980.0,102970.0,1.68815898]
[1747070176794,0.69103777,102980.0,102970.0,1.87267874]
[1747070177009,0.69103777,102980.0,102970.0,1.88239021]
[1747070177239,0.69103777,102980.0,102970.0,1.89210177]
[1747070177656,0.69115777,102980.0,102970.0,1.90181305]
[1747070178055,0.69115777,102980.0,102970.0,1.89210177]
[1747070178318,0.69115777,102980.0,102970.0,1.91152442]
[1747070178532,0.69115777,102980.0,102970.0,1.89210177]
[1747070178699,0.69115777,102980.0,102970.0,1.95114116]
[1747070179177,0.69115777,102980.0,102970.0,1.96085244]
[1747070179379,0.69115777,102980.0,102970.0,1.96085253]
[1747070179546,0.69115777,102980.0,102970.0,1.95114116]
[1747070179743,0.69115777,102980.0,102970.0,1.94142969]
[1747070179953,0.50507777,102980.0,102970.0,1.94142969]
[1747070180167,0.59522347,102980.0,102970.0,1.95114116]
[1747070181039,0.59522347,102980.0,102970.0,1.31189581]
[1747070181246,0.68136772,102980.0,102970.0,1.31189581]
[1747070181700,0.68136772,102980.0,102970.0,1.32160737]
[1747070182176,0.68136772,102980.0,102970.0,1.33131884]
[1747070182416,0.68136772,102980.0,102970.0,1.32160737]
[1747070182632,0.68136772,102980.0,102970.0,1.51583869]
[1747070182843,0.68136772,102980.0,102970.0,1.32160737]
[1747070183764,0.68136772,102980.0,102970.0,1.31189581]
[1747070183996,0.68136772,102980.0,102970.0,1.32160737]
[1747070184219,0.68136772,102980.0,102970.0,1.31189581]
[1747070186676,0.68136772,102980.0,102970.0,1.30669581]
[1747070188666,0.68136772,102980.0,102970.0,1.29599581]
[1747070195541,0.71226772,102980.0,102970.0,1.29599581]
[1747070195766,0.71226772,102980.0,102970.0,1.23695642]
[1747070199947,0.71226772,102980.0,102970.0,1.29599581]
[1747070201653,0.71226772,102980.0,102970.0,1.23695642]
[1747070204085,0.80812202,102980.0,102970.0,0.89695642]
[1747070204291,0.80812202,102980.0,102970.0,1.23695642]
[1747070204508,0.71226772,102980.0,102970.0,1.23695642]
[1747070220172,1.31226772,102980.0,102970.0,0.43616718]
[1747070223007,1.39029747,102980.0,102970.0,0.005]
[1747070223490,1.39029747,102980.0,102960.0,0.03886183]
[1747070223491,0.20394269,102970.0,102960.0,0.43886183]
[1747070223719,0.42765129,102970.0,102960.0,0.4]
[1747070224131,0.43446046,102970.0,102960.0,0.4]
[1747070224829,0.42765129,102970.0,102960.0,0.4]
[1747070225068,0.42765129,102970.0,102960.0,0.403]
[1747070225721,0.72765129,102970.0,102960.0,0.403]
[1747070226434,0.72765129,102970.0,102960.0,0.405]
[1747070226651,0.72765129,102970.0,102960.0,0.005]
[1747070226855,0.72765129,102970.0,102960.0,0.04348293]
[1747070227282,0.72765129,102970.0,102960.0,0.44348293]
[1747070230214,0.72765129,102970.0,102960.0,0.04348293]
[1747070230678,0.72765129,102970.0,102960.0,0.44348293]
[1747070231557,0.72765129,102970.0,102960.0,0.90427217]
[1747070231976,0.72765129,102970.0,102960.0,0.44348293]
[1747070232430,1.14725129,102970.0,102960.0,0.44348293]
[1747070234975,1.35139699,102970.0,102960.0,0.90427217]
[1747070235185,1.72315699,102970.0,102960.0,0.90427217]
[1747070237186,1.03523699,102970.0,102960.0,1.36506141]
[1747070237408,1.09123699,102970.0,102960.0,1.71576141]
[1747070237863,1.09123699,102970.0,102960.0,1.9197241]
[1747070238049,1.09123699,102970.0,102960.0,1.71576141]
[1747070238189,1.09123699,102970.0,102960.0,1.25497217]
[1747070238409,1.09123699,102970.0,102960.0,1.24427217]
[1747070242542,1.21789129,102970.0,102960.0,1.24427217]
[1747070243930,1.12203699,102970.0,102960.0,1.24427217]
[1747070244567,1.10663699,102970.0,102960.0,1.24427217]
[1747070245232,0.92075699,102970.0,102960.0,1.43852236]
[1747070245469,1.09123699,102970.0,102960.0,1.24427217]
[1747070246135,1.09123699,102970.0,102960.0,1.44823477]
[1747070246348,1.08152562,102970.0,102960.0,1.24427217]
[1747070246558,1.08152562,102970.0,102960.0,1.43852236]
[1747070246768,0.66188562,102970.0,102960.0,1.44823486]
[1747070247212,0.66188562,102970.0,102960.0,1.25398467]
[1747070248206,0.66188562,102970.0,102960.0,1.24427217]
[1747070250279,0.66188562,102970.0,102960.0,1.43852236]
[1747070251043,0.66188562,102970.0,102960.0,1.44823486]
[1747070253871,0.66188562,102970.0,102960.0,1.45794708]
[1747070254286,0.69388562,102970.0,102960.0,1.44823486]
[1747070255176,0.69388562,102970.0,102960.0,1.45794727]
[1747070255904,0.67808562,102970.0,102960.0,1.46765959]
[1747070257138,0.68118808,102970.0,102960.0,1.93816096]
[1747070257346,0.69089955,102970.0,102960.0,1.93816096]
[1747070257559,0.69089955,102970.0,102960.0,1.46765959]
[1747070257788,0.72289955,102970.0,102960.0,1.48708394]
[1747070260580,0.35121955,102970.0,102960.0,1.46765959]
[1747070260802,0.71314846,102970.0,102960.0,1.46765959]
[1747070262104,0.70343709,102970.0,102960.0,1.24427217]
[1747070262328,0.79929139,102970.0,102960.0,1.24427217]
[1747070262524,0.79929139,102970.0,102960.0,0.84427217]
[1747070264109,0.70343709,102970.0,102960.0,0.84427217]
[1747070264324,0.70343709,102970.0,102960.0,1.05794708]
[1747070264559,0.71314827,102970.0,102960.0,1.52844845]
[1747070264759,0.71314827,102970.0,102960.0,1.06765921]
[1747070265130,0.70343709,102970.0,102960.0,1.05794708]
[1747070265926,0.70343709,102970.0,102960.0,1.06765921]
[1747070266138,0.70343709,102970.0,102960.0,1.05794708]
[1747070266501,0.70343709,102970.0,102960.0,1.45794708]
[1747070266861,0.70343709,102970.0,102960.0,1.46765921]
[1747070268190,0.32340548,102970.0,102960.0,1.46765921]
[1747070268380,0.72285917,102970.0,102960.0,1.46765921]
[1747070269127,0.032,102970.0,102960.0,1.95054595]
[1747070269341,0.0305,102980.0,102970.0,0.56336516]
[1747070269614,0.53683545,102980.0,102970.0,1.0241544]
[1747070269800,0.54654522,102980.0,102970.0,1.0338653]
[1747070269937,0.53683461,102980.0,102970.0,1.0338653]
[1747070270141,0.54654504,102980.0,102970.0,1.4338653]
[1747070270391,0.54654504,102980.0,102970.0,1.4348653]
[1747070271248,0.36074504,102980.0,102970.0,1.4348653]
[1747070271460,0.54654504,102980.0,102970.0,1.4348653]
[1747070271877,0.54654579,102980.0,102970.0,1.4348653]
[1747070272310,0.74075825,102980.0,102970.0,1.4348653]
[1747070273781,0.34132484,102980.0,102970.0,1.4348653]
[1747070273989,0.52708484,102980.0,102970.0,1.4348653]
[1747070274439,0.46109318,102990.0,102980.0,0.02913072]
[1747070274650,0.77187518,102990.0,102980.0,1.02607428]
[1747070274964,0.95763518,102990.0,102980.0,1.02413242]
[1747070275162,0.95763518,102990.0,102980.0,1.42413242]
[1747070275502,1.16153847,102990.0,102980.0,1.42413242]
[1747070276134,0.91879799,102990.0,102980.0,1.42413242]
[1747070276346,0.12434701,102990.0,102980.0,1.42413242]
[1747070276563,0.29380691,102990.0,102980.0,1.42413242]
[1747070277011,0.31322523,102990.0,102980.0,1.42413242]
[1747070277223,0.31422523,102990.0,102980.0,1.42413242]
[1747070277431,0.32992523,102990.0,102980.0,1.42413242]
[1747070277637,0.32892523,102990.0,102980.0,1.42413242]
[1747070277898,0.32892523,102990.0,102980.0,1.42613242]
[1747070278092,0.30351593,102990.0,102980.0,1.42613242]
[1747070278716,0.30151593,102990.0,102980.0,1.42613242]
[1747070278925,0.30151593,102990.0,102980.0,1.42813242]
[1747070279768,0.12546504,102990.0,102980.0,1.42813242]
[1747070279910,0.30147593,102990.0,102980.0,1.42813242]
[1747070280324,0.19591271,102990.0,102980.0,1.42813242]
[1747070280519,0.00048369,102990.0,102980.0,1.42813242]
[1747070280724,0.19591261,102990.0,102980.0,1.42813242]
[1747070281181,0.20562181,102990.0,102980.0,1.42813242]
[1747070281383,0.22062172,102990.0,102980.0,1.42813242]
[1747070281599,0.23672163,102990.0,102980.0,1.42813242]
[1747070282006,0.22701261,102990.0,102980.0,1.42813242]
[1747070282149,0.20120369,102990.0,102980.0,1.42813242]
[1747070282346,0.21091261,102990.0,102980.0,1.42813242]
[1747070282775,0.20120369,102990.0,102980.0,1.42813242]
[1747070283022,0.18620369,102990.0,102980.0,1.42813242]
[1747070287167,0.20140369,102990.0,102980.0,1.42813242]
[1747070287649,0.21780369,102990.0,102980.0,1.42813242]
[1747070288811,0.18620369,102990.0,102980.0,1.42813242]
[1747070289581,0.3681045,103000.0,102990.0,0.56332151]
[1747070289789,1.00139328,103020.0,103010.0,0.56327861]
[1747070290004,1.00139328,103020.0,103010.0,1.02406785]
[1747070290005,1.48802043,103020.0,103010.0,1.02406785]
[1747070290216,1.32175403,103020.0,103010.0,1.03377507]
[1747070290429,0.98417681,103020.0,103010.0,1.4434822]
[1747070290688,1.20743356,103020.0,103010.0,1.4434822]
[1747070290898,1.0132965,103020.0,103010.0,1.4434822]
[1747070291118,0.93526675,103020.0,103010.0,1.4434822]
[1747070291362,0.74958675,103020.0,103010.0,1.4434822]
[1747070291638,0.7010543,103020.0,103010.0,1.4434822]
[1747070291845,0.21479593,103030.0,103020.0,0.56325647]
[1747070292076,0.4866247,103030.0,103020.0,1.02404571]
[1747070292283,0.49633032,103030.0,103020.0,1.02404571]
[1747070292503,0.50603604,103030.0,103020.0,1.42404571]
[1747070292635,0.53743604,103030.0,103020.0,1.43876619]
[1747070292865,0.74126006,103030.0,103020.0,1.43876619]
[1747070293074,0.74126006,103030.0,103020.0,1.42704571]
[1747070293330,0.71214404,103030.0,103020.0,1.3979263]
[1747070293559,0.70243832,103030.0,103020.0,1.20378924]
[1747070293765,0.70243832,103030.0,103020.0,1.40763315]
[1747070293986,0.70243832,103030.0,103020.0,1.20378924]
[1747070298702,0.70243832,103030.0,103020.0,0.86378924]
[1747070300782,0.70243832,103030.0,103020.0,1.20378924]
[1747070301490,0.70243832,103030.0,103020.0,0.743]
[1747070304665,0.70243832,103030.0,103020.0,0.343]
[1747070305177,0.70243832,103030.0,103020.0,0.743]
[1747070306424,1.00243832,103030.0,103020.0,1.20378924]
[1747070306638,1.30243832,103030.0,103020.0,1.20378924]
[1747070306863,1.00243832,103030.0,103020.0,1.20378924]
[1747070307053,1.30243832,103030.0,103020.0,1.20378924]
[1747070309202,1.11675832,103030.0,103020.0,1.2161749]
[1747070309346,1.30235832,103030.0,103020.0,1.20378924]
[1747070309925,0.81794564,103030.0,103020.0,1.42704571]
[1747070310158,0.72176901,103030.0,103020.0,1.41733952]
[1747070310370,0.2815343,103030.0,103020.0,1.44284571]
[1747070310583,0.2815343,103030.0,103020.0,1.45904571]
[1747070310584,0.48650488,103030.0,103020.0,1.45904571]
[1747070310792,0.49621032,103030.0,103020.0,1.45904571]
[1747070311856,0.48650479,103030.0,103020.0,1.45904571]
[1747070312075,0.49621032,103030.0,103020.0,1.45904571]
[1747070313166,0.48650479,103030.0,103020.0,1.45904571]
[1747070313430,0.18568,103030.0,103020.0,1.45904571]
[1747070313669,0.19538506,103030.0,103020.0,1.45904571]
[1747070313849,0.20509031,103030.0,103020.0,1.45904571]
[1747070314048,0.19538506,103030.0,103020.0,1.45904571]
[1747070314299,0.18568,103030.0,103020.0,1.45904571]
[1747070314516,0.03881779,103040.0,103030.0,0.2232348]
[1747070314732,0.04852266,103040.0,103030.0,0.68402404]
[1747070314929,0.24262203,103040.0,103030.0,0.68402404]
[1747070315372,1.31622995,103050.0,103040.0,0.21350883]
[1747070315373,1.1500778,103050.0,103040.0,0.21350883]
[1747070315596,1.14119565,103050.0,103040.0,0.66459348]
[1747070315817,1.14119565,103050.0,103040.0,0.67434401]
[1747070316703,1.14119565,103050.0,103040.0,0.70726783]
[1747070317056,1.14119565,103050.0,103040.0,0.69756305]
[1747070317465,0.53615565,103050.0,103040.0,0.69756305]
[1747070317685,0.72371565,103050.0,103040.0,0.69756305]
[1747070317900,0.7140121,103050.0,103040.0,0.69756305]
[1747070318113,0.70730827,103050.0,103040.0,0.49375881]
[1747070318980,0.70730827,103050.0,103040.0,0.89375881]
[1747070319853,0.70730827,103050.0,103040.0,0.43296957]
[1747070328585,0.70730827,103050.0,103040.0,0.03296957]
[1747070328828,0.8141055,103050.0,103040.0,4.575e-05]
[1747070329053,1.1141055,103050.0,103040.0,4.575e-05]
[1747070329499,0.5450501,103020.0,103010.0,0.05903939]
[1747070329723,1.4311844,103020.0,103010.0,0.05917658]
[1747070329948,1.4311844,103020.0,103010.0,0.39917658]
[1747070330166,1.4311844,103020.0,103010.0,0.05917658]
[1747070330402,1.4311844,103020.0,103010.0,0.09195289]
[1747070330617,1.5270387,103020.0,103010.0,0.09395289]
[1747070330837,1.5270387,103020.0,103010.0,0.43395289]
[1747070331533,1.5270387,103020.0,103010.0,0.43595289]
[1747070332164,1.5270387,103020.0,103010.0,0.43395289]
[1747070332400,1.5270387,103020.0,103010.0,0.43495289]
[1747070332843,1.5270387,103020.0,103010.0,0.4339135]
[1747070333274,1.5270387,103020.0,103010.0,0.4349135]
[1747070336052,1.5270387,103020.0,103010.0,0.0349135]
[1747070336400,1.5270387,103020.0,103010.0,0.4349135]
[1747070336636,1.5270387,103020.0,103010.0,0.0349135]
[1747070336843,1.5270387,103020.0,103010.0,0.00213719]
[1747070338954,1.5270387,103020.0,103010.0,0.03525702]
[1747070339841,1.2270387,103020.0,103010.0,0.00213719]
[1747070340940,1.24157955,103020.0,103010.0,0.00213719]
[1747070341150,1.24837038,103020.0,103010.0,0.00213719]
[1747070342033,1.24837038,103020.0,103010.0,0.00113719]
[1747070342173,1.24837038,103020.0,103010.0,0.00013719]
[1747070342592,1.25037038,103020.0,103010.0,0.00013719]
[1747070342817,1.25137038,103020.0,103010.0,0.00013719]
[1747070344751,1.2513617,103020.0,103010.0,0.00013719]
[1747070345421,1.24457955,103020.0,103010.0,0.00013719]
[1747070346034,0.96324525,103020.0,103010.0,0.00013719]
[1747070346243,1.14872525,103020.0,103010.0,0.00013719]
[1747070352157,1.24457955,103020.0,103010.0,0.00013719]
[1747070353674,1.25136576,103020.0,103010.0,0.00013719]
[1747070363913,1.55136576,103020.0,103010.0,0.00013719]
[1747070364136,1.55636576,103020.0,103010.0,0.00013719]
[1747070364999,1.727155,103020.0,103010.0,0.00013719]
[1747070365210,1.74939569,103020.0,103010.0,0.00013719]
[1747070365422,1.84939569,103020.0,103010.0,0.00013719]
[1747070365847,1.85446212,103020.0,103010.0,0.00013719]
[1747070366325,1.85146212,103020.0,103010.0,0.00013719]
[1747070367412,1.84146212,103020.0,103010.0,0.00013719]
[1747070367628,1.84546212,103020.0,103010.0,0.00113719]
[1747070367840,1.84946212,103020.0,103010.0,0.00213719]
[1747070368703,2.18946212,103020.0,103010.0,0.00213719]
[1747070368919,2.19946212,103020.0,103010.0,0.00213719]
[1747070371066,0.21363304,102980.0,102970.0,0.58059745]
[1747070371202,1.14385173,102980.0,102970.0,0.40048369]
[1747070371865,1.14385173,102980.0,102970.0,0.42923658]
[1747070372064,1.14385173,102980.0,102970.0,0.02923658]
[1747070372263,1.14485173,102980.0,102970.0,0.03523658]
[1747070372645,1.14485173,102980.0,102970.0,0.43523658]
[1747070373427,1.14485173,102980.0,102970.0,0.77523658]
[1747070375483,1.14485173,102980.0,102970.0,0.37523658]
[1747070376119,1.14485173,102980.0,102970.0,0.77523658]
[1747070379185,1.14485173,102980.0,102970.0,0.37523658]
[1747070379571,1.14485173,102980.0,102970.0,0.77523658]
[1747070379971,1.16095173,102980.0,102970.0,0.77523658]
[1747070380167,1.14485173,102980.0,102970.0,0.77523658]
[1747070381308,1.1341018,102980.0,102970.0,0.77523658]
[1747070381727,1.14381223,102980.0,102970.0,0.77523658]
[1747070382684,1.14381223,102980.0,102970.0,0.37523658]
[1747070382885,1.17601223,102980.0,102970.0,0.00648369]
[1747070383835,1.18282129,102980.0,102970.0,0.00648369]
[1747070384672,1.17601223,102980.0,102970.0,0.00648369]
[1747070386415,1.10096734,102980.0,102970.0,0.00648369]
[1747070386856,1.11726734,102980.0,102970.0,0.00648369]
[1747070387276,1.12407692,102980.0,102970.0,0.00648369]
[1747070387738,1.13937692,102980.0,102970.0,0.00648369]
[1747070389374,1.91470701,102980.0,102970.0,0.00648369]
[1747070389586,2.01056131,102980.0,102970.0,0.00648369]
[1747070390028,1.54977207,102980.0,102970.0,0.00648369]
[1747070390644,1.55477207,102980.0,102970.0,0.00648369]
[1747070393189,1.55377207,102980.0,102970.0,0.00348369]
[1747070393405,2.02456131,102980.0,102970.0,0.00348369]
[1747070396158,1.56377207,102980.0,102970.0,0.00348369]
[1747070396940,1.19281207,102980.0,102970.0,0.00348369]
[1747070397141,1.56365207,102980.0,102970.0,0.00348369]
[1747070399039,1.56364972,102980.0,102970.0,0.00348369]
[1747070400022,1.56871615,102980.0,102970.0,0.00348369]
[1747070400809,1.56871535,102980.0,102970.0,0.00348369]
[1747070401040,2.02950459,102980.0,102970.0,0.00348369]
[1747070401571,1.72950459,102980.0,102970.0,0.00048369]
[1747070401840,1.85672461,102980.0,102970.0,0.00048369]
[1747070402087,1.84672461,102980.0,102970.0,0.00048369]
[1747070402737,1.84772461,102980.0,102970.0,0.00048369]
[1747070402957,1.84672487,102980.0,102970.0,0.00048369]
[1747070403172,1.86153508,102980.0,102970.0,0.00048369]
[1747070403396,1.86453508,102980.0,102970.0,0.00248369]
[1747070404027,1.86453508,102980.0,102970.0,0.00148369]
[1747070404226,1.86553508,102980.0,102970.0,0.00148369]
[1747070406451,1.40474584,102980.0,102970.0,0.00148369]
[1747070406852,1.39287272,102980.0,102970.0,0.00148369]
[1747070407064,1.39967788,102980.0,102970.0,0.00148369]
[1747070407751,1.39287272,102980.0,102970.0,0.00148369]
[1747070407952,2.20366196,102980.0,102970.0,0.00148369]
[1747070411104,2.20266196,102980.0,102970.0,0.00148369]
[1747070411338,2.20566196,102980.0,102970.0,0.00148369]
[1747070411761,2.20266196,102980.0,102970.0,0.00148369]
[1747070411972,2.19966196,102980.0,102970.0,0.00048369]
[1747070412207,2.20966196,102980.0,102970.0,0.00248369]
[1747070412441,2.26796196,102980.0,102970.0,0.00248369]
[1747070412803,2.38542238,102980.0,102970.0,0.00248369]
[1747070415443,2.39223072,102980.0,102970.0,0.00248369]
[1747070416040,2.03378358,102980.0,102970.0,0.00148369]
[1747070416348,2.20077602,102980.0,102970.0,0.00148369]
[1747070416578,2.19577602,102980.0,102970.0,0.00048369]
[1747070416794,2.21377602,102980.0,102970.0,0.00048369]
[1747070417424,2.23277602,102980.0,102970.0,0.00148369]
[1747070419297,2.22277602,102980.0,102970.0,0.00148369]
[1747070419517,0.22827767,102930.0,102920.0,0.0306]
[1747070419732,1.18683023,102930.0,102920.0,0.0306]
[1747070420158,1.19363857,102930.0,102920.0,0.4306]
[1747070420719,1.19463857,102930.0,102920.0,0.03468286]
[1747070421154,1.19563857,102930.0,102920.0,0.03568286]
[1747070422101,0.91866346,102920.0,102910.0,0.74]
[1747070422318,1.11037206,102920.0,102910.0,0.74004568]
[1747070423001,1.11037206,102920.0,102910.0,0.76889773]
[1747070423222,1.01451776,102920.0,102910.0,0.76889773]
[1747070423441,1.01451776,102920.0,102910.0,1.22968697]
[1747070423660,0.71551776,102920.0,102910.0,1.23068697]
[1747070423927,1.38723776,102920.0,102910.0,1.23468697]
[1747070425235,1.38723776,102920.0,102910.0,1.25268697]
[1747070426875,1.48309206,102920.0,102910.0,1.25268697]
[1747070427286,1.48309206,102920.0,102910.0,0.38569773]
[1747070427765,1.48309206,102920.0,102910.0,0.39189773]
[1747070429093,1.38723776,102920.0,102910.0,0.39189773]
[1747070431494,1.38723776,102920.0,102910.0,0.79189773]
[1747070431745,1.09639564,102920.0,102910.0,0.74504568]
[1747070431967,1.12649564,102920.0,102910.0,0.74504568]
[1747070432178,1.09639564,102920.0,102910.0,0.34504568]
[1747070432399,1.09639564,102920.0,102910.0,0.00504568]
[1747070432400,1.22234994,102920.0,102910.0,0.00504568]
[1747070432820,1.23489079,102920.0,102910.0,4.568e-05]
[1747070433053,1.23489079,102920.0,102910.0,0.00104568]
[1747070433294,1.23589079,102920.0,102910.0,0.00104568]
[1747070434789,1.25052926,102920.0,102910.0,0.00104568]
[1747070436158,1.55052926,102920.0,102910.0,0.00104568]
[1747070436603,1.65052926,102920.0,102910.0,0.00104568]
[1747070437047,1.53590757,102920.0,102910.0,4.568e-05]
[1747070437455,1.53790757,102920.0,102910.0,0.00104568]
[1747070437676,1.53890757,102920.0,102910.0,0.00104568]
[1747070438142,0.81381991,102890.0,102880.0,0.39839633]
[1747070438361,1.79596851,102890.0,102880.0,0.39844201]
[1747070438562,1.80481221,102890.0,102880.0,0.39844201]
[1747070438984,1.80481221,102890.0,102880.0,0.39224201]
[1747070439191,1.50481221,102890.0,102880.0,0.39224201]
[1747070439409,1.52221221,102890.0,102880.0,0.00304568]
[1747070439830,1.55285306,102890.0,102880.0,0.00304568]